fUST/lending_fUST_20240717
["ID","MTS","AMOUNT","RATE_DAILY","PERIOD"]
[332409117,1721163043443,-459.78487721,0.00021799,2]
[332409118,1721163043452,-205.93547803,0.00021799,2]
[332409119,1721163043461,-865.6111189,0.000218,5]
[332409120,1721163043470,-421.20370182,0.000218,3]
[332409121,1721163043482,-8865.85944481,0.000218,3]
[332409123,1721163043492,-9571.004791,0.000218,3]
[332409127,1721163046342,-171.92725803,0.00019165,2]
[332409128,1721163046352,-1126.72612807,0.000218,3]
[332409129,1721163046367,-134653.15481886,0.000218,3]
[332409130,1721163046379,-866.00506687,0.000218,3]
[332409131,1721163046390,-1206.59371949,0.000218,3]
[332409132,1721163046401,-12680.58127397,0.000218,3]
[332409133,1721163046412,-11487.58075886,0.000218,3]
[332409134,1721163066654,246.95263272,0.00018,2]
[332409135,1721163066681,65735.27736728,0.00018,2]
[332409136,1721163117106,19190.77229192,0.00018,2]
[332409139,1721163137802,3775.33401464,0.00018,2]
[332409140,1721163154283,1623.28508043,0.00018,2]
[332409143,1721163287592,171.92725803,0.00016255,2]
[332409144,1721163319457,155.54259734,0.00016255,2]
[332409146,1721163459409,234.91636439,0.00016255,2]
[332409148,1721163485629,1287.87828047,0.00016255,2]
[332409149,1721163496596,171.92725803,0.00016255,2]
[332409151,1721163526600,171.92725803,0.00016255,2]
[332409152,1721163540970,156.72164257,0.00016255,2]
[332409153,1721163591991,156.28958,0.00016255,2]
[332409154,1721163609792,339.28552324,0.00016255,2]
[332409155,1721163609946,154.7599248,0.00016255,2]
[332409156,1721163619588,277.7269715,0.00017531,2]
[332409157,1721163637647,201.12793602,0.00016255,2]
[332409158,1721163653107,538.89562,0.00016255,2]
[332409159,1721163782571,1436.35994433,0.00016255,2]
[332409160,1721163787723,260.69584236,0.00016255,2]
[332409161,1721163850380,155.02881855,0.00016255,2]
[332409162,1721163932158,-300.0,0.00018781,2]
[332409163,1721163932180,-108.1528737,0.00018782,2]
[332409167,1721163961942,223.80432701,0.00016255,2]
[332409168,1721164047092,-300.0,0.00018781,2]
[332409169,1721164047114,-300.0,0.00018781,2]
[332409170,1721164047135,-1320.1883984,0.00018782,2]
[332409177,1721164146136,-300.0,0.00018781,2]
[332409178,1721164146167,-23471.6587279,0.00018782,2]
[332409179,1721164146195,-191.36840556,0.00018798,2]
[332409180,1721164146221,-213.101287,0.00018854,2]
[332409181,1721164146249,-349.3564339,0.00019029,2]
[332409182,1721164146278,-197.44371632,0.00019039,2]
[332409183,1721164146308,-3000.0,0.00019094,2]
[332409184,1721164146339,-250.0,0.00019124,2]
[332409185,1721164146369,-1026.985248,0.00019152,2]
[332409186,1721164146397,-1287.87828047,0.00019164,2]
[332409187,1721164146424,-155.82782177,0.00019165,2]
[332409188,1721164146446,-163.781196,0.00019178,2]
[332409189,1721164146470,-176.605195,0.00019313,2]
[332409190,1721164146644,-176.605195,0.00019481,2]
[332409191,1721164146673,-176.605195,0.00019648,2]
[332409192,1721164146695,-153.11867467,0.000197,2]
[332409197,1721164200727,151.0,0.000189,2]
[332409198,1721164200749,1.07911645,0.000189,2]
[332409206,1721164233483,-176.605195,0.00019816,2]
[332409207,1721164233493,-176.605195,0.00019984,2]
[332409208,1721164233504,-246.95263272,0.0002,2]
[332409209,1721164233515,-228.28740449,0.0002,2]
[332409210,1721164233525,-176.605195,0.00020152,2]
[332409211,1721164233536,-176.605195,0.00020319,2]
[332409212,1721164233546,-206.878296,0.00021096,2]
[332409213,1721164233555,-484.9658,0.00021096,2]
[332409214,1721164233565,-300.0,0.00021542,2]
[332409215,1721164233575,-150.0,0.00021543,2]
[332409216,1721164233586,-504.0,0.00021543,2]
[332409217,1721164233597,-153.90035594,0.00021591,2]
[332409218,1721164233608,-1407.0,0.0002176,2]
[332409219,1721164233624,-1788.12139545,0.0002179,3]
[332409220,1721164233641,-335.33134682,0.0002179,3]
[332409221,1721164233650,-768.92,0.0002179,3]
[332409222,1721164233661,-384.46,0.0002179,3]
[332409223,1721164233672,-192.23,0.0002179,3]
[332409224,1721164233682,-576.69,0.0002179,3]
[332409225,1721164233692,-2219.80178925,0.000218,3]
[332409226,1721164233704,-466.0,0.000218,3]
[332409227,1721164233723,-3363.21123716,0.000218,3]
[332409253,1721164238629,-2756.6988607,0.000218,3]
[332409385,1721164240672,-510.94687324,0.000218,3]
[332409398,1721164240735,-7896.4519502,0.000218,3]
[332409401,1721164240747,-8510.1312,0.000218,3]
[332409522,1721164243679,-543.83170778,0.000218,3]
[332409524,1721164243691,-745.94033061,0.000218,3]
[332409526,1721164243703,-9571.004791,0.000218,3]
[332409584,1721164323768,192.44783926,0.00019165,2]
[332409585,1721164323789,181.46125144,0.00019165,2]
[332409587,1721164406370,500.0,0.00027397,120]
[332409588,1721164436783,4953.16409429,0.00018,2]
[332409589,1721164461418,1214.0,0.00021,10]
[332409593,1721164521763,28367.25713956,0.00016255,2]
[332409594,1721164522774,10443.24057885,0.00016255,2]
[332409596,1721164596693,281.31505793,0.00015,2]
[332409597,1721164596722,418.27573625,0.00015,2]
[332409598,1721164596750,30.6533701,0.00015,2]
[332409599,1721164606280,387.62236615,0.00014999,2]
[332409600,1721164606324,418.27573625,0.00014999,2]
[332409601,1721164606365,130.69010704,0.00014999,2]
[332409604,1721164659477,287.58562921,0.00014999,2]
[332409605,1721164659516,129.7116759,0.00014999,2]
[332409606,1721164662183,126.43963808,0.00014999,2]
[332409607,1721164662214,13001.97001486,0.00014999,2]
[332409608,1721164668153,242.83545058,0.00014999,2]
[332409609,1721164668197,1974.46480504,0.00014999,2]
[332409611,1721164675092,2129.50465136,0.00014999,2]
[332409612,1721164675217,12379.60622891,0.00014999,2]
[332409613,1721164688997,1886.19830605,0.00014999,2]
[332409614,1721164720262,4035.39999079,0.00014999,2]
[332409615,1721164728752,441.18676448,0.00014999,2]
[332409616,1721164734072,310.19,0.00010959,2]
[332409617,1721164744620,480.06,0.00010959,2]
[332409618,1721164746172,154.69833824,0.00014999,2]
[332409620,1721164755397,400.05,0.00010959,2]
[332409621,1721164757917,283.56828739,0.00014999,2]
[332409622,1721164765902,333.38,0.00010959,2]
[332409623,1721164769227,156.70369846,0.00014999,2]
[332409624,1721164771057,567.00490638,0.00014999,2]
[332409625,1721164772882,989.09832925,0.00014999,2]
[332409626,1721164773256,207.69674632,0.00014999,2]
[332409627,1721164774960,885.39104552,0.00014999,2]
[332409628,1721164776444,277.81,0.00010959,2]
[332409629,1721164776501,196.09695636,0.00014999,2]
[332409630,1721164786545,524.1077099,0.00014999,2]
[332409631,1721164786986,231.51,0.00010959,2]
[332409632,1721164792088,424.79035194,0.00014999,2]
[332409633,1721164792208,1707.09413431,0.00014999,2]
[332409634,1721164792261,2132.09145048,0.00014999,2]
[332409635,1721164794831,599.33883006,0.00014999,2]
[332409636,1721164797524,192.93,0.00010959,2]
[332409637,1721164800722,493.28815519,0.00014999,2]
[332409638,1721164803583,1500.0,0.00014999,2]
[332409639,1721164808299,160.77,0.00010959,2]
[332409640,1721164818821,803.88,0.00010959,2]
[332409641,1721164819496,677.67484457,0.00014999,2]
[332409644,1721164822440,277.71862252,0.00014999,2]
[332409646,1721164836269,3012.3256533,0.00015871,2]
[332409648,1721164860275,455.0,0.00014999,2]
[332409649,1721164863279,405.35311382,0.00014999,2]
[332409651,1721164902121,165.20623857,0.00014999,2]
[332409652,1721164906357,459.5727982,0.00015821,2]
[332409653,1721164914701,201.12793602,0.00014999,2]
[332409654,1721164918191,413.16071737,0.00014999,2]
[332409655,1721164922473,154.71377022,0.00014999,2]
[332409656,1721164933175,232.98135407,0.00014999,2]
[332409658,1721164947840,522.84904634,0.00014999,2]
[332409659,1721164951379,402.79270453,0.00014999,2]
[332409660,1721164952116,192.15666977,0.00014999,2]
[332409661,1721164954512,195.98160022,0.00014999,2]
[332409662,1721164959963,193.95450379,0.00014999,2]
[332409663,1721164963403,180.13782796,0.00014999,2]
[332409664,1721164972587,156.22792532,0.00014999,2]
[332409666,1721164978388,180.13782796,0.00014999,2]
[332409667,1721164979042,258.66730962,0.00014999,2]
[332409668,1721164985686,459.7457846,0.00014999,2]
[332409670,1721165003946,302.3111812,0.00014999,2]
[332409671,1721165007521,154.91693737,0.00014999,2]
[332409672,1721165013965,1755.1806968,0.00015821,2]
[332409673,1721165020961,214.13982416,0.00014999,2]
[332409674,1721165033262,154.65203293,0.00014999,2]
[332409675,1721165039381,157.71416,0.00015964,2]
[332409676,1721165051141,287.14415021,0.00014999,2]
[332409677,1721165065342,1160.1146898,0.00014999,2]
[332409680,1721165082759,819.59002386,0.00014999,2]
[332409681,1721165091087,3000.0,0.00015462,2]
[332409682,1721165099735,236.4271275,0.00014999,2]
[332409683,1721165111944,160.15762601,0.00014999,2]
[332409684,1721165121952,156.26261511,0.00014999,2]
[332409685,1721165128261,902.0212717,0.00015462,2]
[332409686,1721165129495,176.6555721,0.00015462,2]
[332409688,1721165138582,24900.0,0.00015462,2]
[332409693,1721165226984,181.84215111,0.00015462,2]
[332409695,1721165236217,2045.32526605,0.00015462,2]
[332409697,1721165280985,481.11245122,0.00014999,2]
[332409701,1721165298304,1303.65750636,0.00014999,2]
[332409706,1721165315275,154.83733742,0.00014999,2]
[332409707,1721165316861,1156.64402944,0.00014999,2]
[332409708,1721165318711,403.99333324,0.00014999,2]
[332409710,1721165328289,214.0,0.000195,10]
[332409711,1721165358919,226.97603054,0.00014999,2]
[332409712,1721165360874,1029.4312377,0.00015207,2]
[332409713,1721165364913,156.43680836,0.00014999,2]
[332409714,1721165375073,154.96125969,0.00014999,2]
[332409715,1721165378168,4720.09136169,0.00014999,2]
[332409716,1721165384852,461.66852713,0.00015,2]
[332409717,1721165387016,352.05638924,0.00014999,2]
[332409718,1721165393060,383.26537159,0.00014999,2]
[332409719,1721165404546,665.128202,0.00015648,2]
[332409720,1721165405364,-157.71416,0.0001602,2]
[332409721,1721165405397,-157.71416,0.00016075,2]
[332409722,1721165405426,-110.96038471,0.00016131,2]
[332409723,1721165411953,481.11245122,0.00014999,2]
[332409724,1721165414292,4696.33537857,0.00014999,2]
[332409725,1721165415736,16241.85902907,0.00014999,2]
[332409769,1721165432805,-46.75377529,0.00016131,2]
[332409771,1721165432815,-157.71416,0.00016186,2]
[332409773,1721165432825,-157.71416,0.00016242,2]
[332409775,1721165432834,-300.0,0.00016254,2]
[332409777,1721165432843,-300.0,0.00016254,2]
[332409779,1721165432853,-7280.54285907,0.00016255,2]
[332409782,1721165432864,-3220.8661805,0.00016255,2]
[332409784,1721165432878,-777.92281158,0.00016255,2]
[332409787,1721165432894,-413.01757721,0.00016255,2]
[332409789,1721165432905,-2628.83610027,0.00016255,2]
[332409973,1721165437737,-10225.50584094,0.00016255,2]
[332409975,1721165437749,-572.85250999,0.00016255,2]
[332409976,1721165437759,-201.56287409,0.00016255,2]
[332409978,1721165437770,-776.42221223,0.00016255,2]
[332409979,1721165437783,-157.71416,0.00016297,2]
[332409980,1721165437794,-157.71416,0.00016353,2]
[332409981,1721165437805,-157.71416,0.00016408,2]
[332409982,1721165437815,-157.71416,0.00016463,2]
[332409983,1721165437825,-157.71416,0.00016519,2]
[332409984,1721165437834,-157.71416,0.00016574,2]
[332409985,1721165437844,-157.71416,0.0001663,2]
[332409986,1721165437855,-157.71416,0.00016685,2]
[332409987,1721165437865,-157.71416,0.00016741,2]
[332409988,1721165437874,-157.71416,0.00016796,2]
[332409989,1721165437884,-420.0,0.00017766,2]
[332409990,1721165437894,-1162.8063851,0.00017789,2]
[332409991,1721165437903,-420.0,0.00017879,2]
[332409992,1721165437913,-1394.3849936,0.00017889,2]
[332409993,1721165437922,-437.85751669,0.00017889,2]
[332409994,1721165437932,-1394.38499359,0.00017892,2]
[332409995,1721165437943,-1394.38499359,0.00017895,2]
[332409996,1721165437954,-437.85751668,0.00017895,2]
[332409997,1721165437964,-1394.38499359,0.00017897,2]
[332409998,1721165437975,-1394.38499359,0.000179,2]
[332409999,1721165437984,-437.85751668,0.000179,2]
[332410000,1721165437995,-500.0,0.00017989,2]
[332410001,1721165438005,-500.0,0.00017989,2]
[332410002,1721165438014,-392.40236796,0.00017989,2]
[332410003,1721165438024,-500.0,0.00017989,2]
[332410004,1721165438033,-500.0,0.00017989,2]
[332410005,1721165438043,-500.0,0.00017989,2]
[332410006,1721165438052,-158.52660868,0.00017989,2]
[332410007,1721165438063,-500.0,0.00017989,2]
[332410008,1721165438072,-500.0,0.00017989,2]
[332410009,1721165438083,-327.04076628,0.00017989,2]
[332410010,1721165438094,-500.0,0.00017989,2]
[332410011,1721165438104,-500.0,0.00017989,2]
[332410012,1721165438115,-500.0,0.00017989,2]
[332410013,1721165438125,-500.0,0.00017989,2]
[332410014,1721165438136,-500.0,0.00017989,2]
[332410015,1721165438147,-500.0,0.00017989,2]
[332410016,1721165438158,-490.83437918,0.00017989,2]
[332410017,1721165438167,-500.0,0.00017989,2]
[332410018,1721165438177,-500.0,0.00017989,2]
[332410019,1721165438188,-500.0,0.00017989,2]
[332410020,1721165438202,-500.0,0.00017989,2]
[332410021,1721165438211,-500.0,0.00017989,2]
[332410022,1721165438221,-500.0,0.00017989,2]
[332410023,1721165438231,-540.49223411,0.00017989,2]
[332410024,1721165438242,-274.382275,0.00017989,2]
[332410025,1721165438253,-500.0,0.00017989,2]
[332410026,1721165438262,-500.0,0.00017989,2]
[332410027,1721165438274,-500.0,0.00017989,2]
[332410028,1721165438284,-500.0,0.00017989,2]
[332410029,1721165438295,-500.0,0.00017989,2]
[332410030,1721165438305,-151.0,0.0001799,2]
[332410031,1721165438314,-156.924253,0.0001799,2]
[332410032,1721165438323,-151.0,0.0001799,2]
[332410033,1721165438333,-151.0,0.0001799,2]
[332410034,1721165438342,-151.0,0.0001799,2]
[332410035,1721165438350,-151.0,0.0001799,2]
[332410036,1721165438360,-151.0,0.0001799,2]
[332410037,1721165438369,-151.0,0.0001799,2]
[332410038,1721165438379,-68808.7221637,0.0001799,2]
[332410039,1721165438391,-100000.0,0.00018,2]
[332410040,1721165438402,-151.0,0.00018,2]
[332410041,1721165438412,-151.0,0.00018,2]
[332410042,1721165438423,-151.0,0.00018,2]
[332410043,1721165438433,-151.0,0.00018,2]
[332410044,1721165438445,-151.0,0.00018,2]
[332410045,1721165438456,-151.0,0.00018,2]
[332410046,1721165438466,-151.0,0.00018,2]
[332410047,1721165438476,-151.0,0.00018,2]
[332410048,1721165438486,-151.0,0.00018,2]
[332410049,1721165438496,-151.0,0.00018,2]
[332410050,1721165438506,-197.7145,0.00018,2]
[332410051,1721165438518,-197.7145,0.00018,2]
[332410052,1721165438527,-151.0,0.00018,2]
[332410053,1721165438537,-248.51354307,0.0001818,2]
[332410054,1721165438547,-191.36840556,0.00018798,2]
[332410055,1721165438557,-594.69440398,0.000189,2]
[332410056,1721165438568,-197.47648542,0.00019039,2]
[332410057,1721165438579,-469.73106147,0.00019039,3]
[332410058,1721165438589,-250.0,0.00019041,2]
[332410059,1721165438598,-185.97703803,0.000191,2]
[332410060,1721165438607,-151.0,0.00019178,2]
[332410061,1721165438616,-151.0,0.00019178,2]
[332410062,1721165438626,-167.405114,0.00019178,2]
[332410063,1721165438635,-151.0,0.00019178,2]
[332410064,1721165438645,-151.0,0.00019178,2]
[332410065,1721165438654,-170.02266,0.00019347,2]
[332410066,1721165438664,-342.0,0.0001942,2]
[332410067,1721165438673,-587.0,0.00019667,2]
[332410068,1721165438683,-151.0,0.00019702,2]
[332410069,1721165438694,-230.339713,0.00019703,2]
[332410070,1721165438703,-151.0,0.00019978,2]
[332410071,1721165438713,-500.0,0.00019978,2]
[332410072,1721165438722,-525.85713489,0.00019978,2]
[332410073,1721165438732,-260.83705195,0.00019978,2]
[332410074,1721165438741,-500.0,0.00019978,2]
[332410075,1721165438751,-500.0,0.00019978,2]
[332410076,1721165438760,-500.0,0.00019978,2]
[332410077,1721165438771,-344.29858425,0.00019978,2]
[332410078,1721165438783,-500.0,0.00019978,2]
[332410079,1721165438793,-500.0,0.00019978,2]
[332410080,1721165438803,-185.84755985,0.00019978,2]
[332410081,1721165438813,-500.0,0.00019978,2]
[332410082,1721165438823,-500.0,0.00019978,2]
[332410083,1721165438833,-647.87581342,0.00019978,2]
[332410084,1721165438844,-500.0,0.00019978,2]
[332410085,1721165438853,-500.0,0.00019978,2]
[332410086,1721165438865,-500.0,0.00019978,2]
[332410087,1721165438875,-500.0,0.00019978,2]
[332410088,1721165438884,-500.0,0.00019978,2]
[332410089,1721165438893,-500.0,0.00019978,2]
[332410090,1721165438903,-408.53006897,0.00019978,2]
[332410091,1721165438913,-500.0,0.00019978,2]
[332410092,1721165438922,-500.0,0.00019978,2]
[332410093,1721165438933,-500.0,0.00019978,2]
[332410094,1721165438943,-500.0,0.00019978,2]
[332410095,1721165438955,-500.0,0.00019978,2]
[332410096,1721165438964,-500.0,0.00019978,2]
[332410097,1721165438974,-305.55251125,0.00019978,2]
[332410098,1721165438984,-500.0,0.00019978,2]
[332410099,1721165438993,-500.0,0.00019978,2]
[332410100,1721165439003,-500.0,0.00019978,2]
[332410101,1721165439012,-500.0,0.00019978,2]
[332410102,1721165439023,-500.0,0.00019978,2]
[332410103,1721165439033,-151.0,0.00019979,2]
[332410104,1721165439042,-34404.3610818,0.00019979,2]
[332410105,1721165439052,-151.0,0.00019989,2]
[332410106,1721165439062,-151.0,0.00019989,2]
[332410107,1721165439073,-151.0,0.00019989,2]
[332410108,1721165439083,-151.0,0.00019989,2]
[332410109,1721165439095,-170.682304,0.00019989,2]
[332410110,1721165439106,-151.0,0.00019989,2]
[332410111,1721165439118,-1326.111529,0.00019989,2]
[332410112,1721165439129,-1326.111529,0.00019989,2]
[332410113,1721165439139,-151.0,0.00019989,2]
[332410114,1721165439150,-151.0,0.00019989,2]
[332410115,1721165439161,-197.7145,0.00019989,2]
[332410116,1721165439170,-151.0,0.00019989,2]
[332410117,1721165439180,-155.986164,0.00019989,2]
[332410118,1721165439189,-197.7145,0.00019989,2]
[332410119,1721165439198,-151.0,0.00019989,2]
[332410120,1721165439207,-155.986164,0.00019989,2]
[332410121,1721165439217,-151.0,0.00019989,2]
[332410123,1721165439226,-169.284382,0.00019989,2]
[332410124,1721165439236,-151.0,0.00019989,2]
[332410125,1721165439246,-151.0,0.00019989,2]
[332410126,1721165439256,-151.0,0.00019989,2]
[332410127,1721165439265,-151.0,0.0001999,2]
[332410129,1721165439275,-151.0,0.0001999,2]
[332410131,1721165439285,-151.0,0.0001999,2]
[332410133,1721165439296,-151.0,0.0001999,2]
[332410135,1721165439305,-151.0,0.0001999,2]
[332410137,1721165439315,-1326.111529,0.0001999,2]
[332410139,1721165439324,-1326.111529,0.0001999,2]
[332410141,1721165439333,-151.0,0.0001999,2]
[332410143,1721165439343,-151.0,0.0001999,2]
[332410145,1721165439352,-151.0,0.0001999,2]
[332410147,1721165439361,-197.7145,0.0001999,2]
[332410149,1721165439371,-155.986164,0.0001999,2]
[332410151,1721165439380,-197.7145,0.0001999,2]
[332410153,1721165439390,-151.0,0.0001999,2]
[332410155,1721165439400,-155.986164,0.0001999,2]
[332410157,1721165439410,-151.0,0.0001999,2]
[332410160,1721165439421,-151.0,0.0001999,2]
[332410162,1721165439430,-151.0,0.0001999,2]
[332410165,1721165439439,-151.0,0.0001999,2]
[332410168,1721165439449,-428.86667829,0.0002,2]
[332410170,1721165439459,-293.52950214,0.0002,2]
[332410172,1721165439469,-150.112233,0.0002,4]
[332410173,1721165439480,-196.84039408,0.0002,2]
[332410174,1721165439490,-151.26617639,0.0002,2]
[332410175,1721165439501,-228.28740449,0.0002,2]
[332410176,1721165439511,-150.112233,0.000202,3]
[332410177,1721165439521,-1162.80638506,0.00020233,2]
[332410178,1721165439531,-150.112233,0.000204,4]
[332410179,1721165439542,-151.0,0.00020548,2]
[332410180,1721165439555,-151.0,0.00020548,2]
[332410181,1721165439564,-214.902004,0.00020548,2]
[332410182,1721165439575,-150.112233,0.000206,2]
[332410183,1721165439585,-607.4,0.00020783,2]
[332410184,1721165439595,-151.0,0.00020791,2]
[332410185,1721165439607,-151.0,0.00020791,2]
[332410186,1721165439618,-151.0,0.00020791,2]
[332410187,1721165439629,-151.0,0.00020791,2]
[332410188,1721165439641,-150.112233,0.000208,5]
[332410189,1721165439652,-191.242275,0.00020807,2]
[332410190,1721165439661,-160.0,0.00020905,3]
[332410191,1721165439671,-156.121851,0.00020918,2]
[332410192,1721165439682,-607.4,0.00020936,2]
[332410193,1721165439693,-114012.91357091,0.0002099,2]
[332410194,1721165439703,-151.0,0.0002099,2]
[332410195,1721165439714,-287.61587018,0.00021,2]
[332410196,1721165439813,-764.58301536,0.00021,2]
[332410197,1721165439825,-2472.56458195,0.00021,2]
[332410198,1721165439835,-158.130355,0.00021,2]
[332410199,1721165439845,-150.112233,0.00021,3]
[332410200,1721165439855,-607.4,0.00021089,2]
[332410201,1721165439866,-1102.982629,0.00021093,2]
[332410202,1721165439875,-151.0,0.00021093,2]
[332410203,1721165439884,-151.0,0.00021093,2]
[332410204,1721165439894,-151.0,0.00021093,2]
[332410205,1721165439904,-151.0,0.00021094,2]
[332410206,1721165439917,-151.0,0.00021094,2]
[332410207,1721165439928,-151.0,0.00021094,2]
[332410208,1721165439939,-151.0,0.00021094,2]
[332410209,1721165439950,-1326.111529,0.00021094,2]
[332410210,1721165439959,-1326.111529,0.00021094,2]
[332410211,1721165439970,-151.0,0.00021094,2]
[332410212,1721165439981,-248.652512,0.00021094,2]
[332410213,1721165439991,-151.0,0.00021094,2]
[332410214,1721165440001,-197.7145,0.00021094,2]
[332410215,1721165440011,-155.986164,0.00021094,2]
[332410216,1721165440021,-197.7145,0.00021094,2]
[332410217,1721165440031,-206.084806,0.00021094,2]
[332410218,1721165440040,-155.986164,0.00021094,2]
[332410219,1721165440050,-151.0,0.00021094,2]
[332410220,1721165440060,-151.0,0.00021094,2]
[332410221,1721165440070,-151.0,0.00021094,2]
[332410222,1721165440080,-151.0,0.00021094,2]
[332410223,1721165440089,-299.58099341,0.00021095,2]
[332410224,1721165440101,-151.0,0.00021095,2]
[332410225,1721165440112,-151.0,0.00021095,2]
[332410226,1721165440122,-151.0,0.00021095,2]
[332410227,1721165440133,-206.878296,0.00021096,2]
[332410228,1721165440143,-518.028719,0.00021096,2]
[332410229,1721165440154,-150.112233,0.000212,4]
[332410230,1721165440164,-607.4,0.00021242,2]
[332410231,1721165440174,-150.112233,0.000213,5]
[332410232,1721165440185,-607.4,0.00021395,2]
[332410233,1721165440195,-150.112233,0.000215,4]
[332410234,1721165440204,-171.52679569,0.00021546,2]
[332410235,1721165440214,-607.4,0.00021547,2]
[332410236,1721165440226,-153.0,0.00021578,2]
[332410237,1721165440235,-153.0,0.00021616,2]
[332410238,1721165440246,-823.0,0.00021634,2]
[332410239,1721165440256,-151.0,0.0002169,2]
[332410240,1721165440267,-17612.52993338,0.0002169,3]
[332410241,1721165440278,-303.7391479,0.00021697,2]
[332410242,1721165440288,-150.112233,0.000217,5]
[332410243,1721165440298,-607.4,0.000217,2]
[332410244,1721165440308,-151.0,0.000217,2]
[332410245,1721165440318,-1000.0,0.0002176,2]
[332410246,1721165440327,-23041.60877228,0.0002179,5]
[332410247,1721165440338,-151.0,0.0002179,2]
[332410248,1721165440347,-151.0,0.0002179,2]
[332410249,1721165440359,-151.0,0.0002179,2]
[332410250,1721165440369,-151.0,0.0002179,2]
[332410251,1721165440380,-151.0,0.0002179,2]
[332410252,1721165440389,-151.0,0.0002179,2]
[332410253,1721165440400,-151.0,0.0002179,2]
[332410254,1721165440410,-68808.7221637,0.0002179,3]
[332410255,1721165440421,-197.7145,0.0002179,2]
[332410256,1721165440431,-197.7145,0.0002179,2]
[332410257,1721165440440,-209.029554,0.0002179,2]
[332410258,1721165440450,-34404.3610818,0.00021795,3]
[332410259,1721165440459,-10119.72747558,0.00021798,2]
[332410260,1721165440479,-1981.57033308,0.00021798,2]
[332410261,1721165440488,-628.14250486,0.000218,3]
[332410262,1721165440500,-517.29939446,0.000218,3]
[332410275,1721165443021,-13.73465971,0.000218,3]
[332410289,1721165632374,424.44184456,0.00010959,2]
[332410290,1721165632404,233.47815544,0.00010959,2]
[332410291,1721165642908,526.33,0.00010959,2]
[332410292,1721165661999,165.35665673,0.00014999,2]
[332410293,1721165670658,154.69833824,0.00013283,2]
[332410294,1721165672085,156.33744284,0.00014999,2]
[332410295,1721165679320,537.46637191,0.00014999,2]
[332410296,1721165680997,154.86836189,0.00010959,2]
[332410297,1721165708261,493.0619361,0.00014999,2]
[332410298,1721165712503,235.49399065,0.00013283,2]
[332410299,1721165715000,369.7,0.00010959,2]
[332410300,1721165719463,286.51459266,0.00013283,2]
[332410301,1721165725479,308.09,0.00010959,2]
[332410302,1721165733694,2061.78194522,0.00013283,2]
[332410303,1721165735106,307.89547182,0.00013283,2]
[332410305,1721165735991,256.74,0.00010959,2]
[332410306,1721165746525,256.74,0.00010959,2]
[332410307,1721165757290,171.16,0.00010959,2]
[332410308,1721165778673,855.82,0.00010959,2]
[332410313,1721165889472,489.47674109,0.00013283,2]
[332410315,1721165915688,402.73174598,0.00013283,2]
[332410317,1721165981119,462.2249939,0.00015374,2]
[332410318,1721165987027,332.564101,0.00015252,2]
[332410319,1721166057754,297.60877074,0.00014999,2]
[332410321,1721166117118,560.48,0.00010959,2]
[332410322,1721166142311,2121.20832974,0.00014999,2]
[332410324,1721166175734,180.5631651,0.00015415,2]
[332410325,1721166240433,567.49964681,0.00014999,2]
[332410326,1721166250926,24900.0,0.00015251,2]
[332410328,1721166271141,790.77511278,0.00014999,2]
[332410329,1721166311920,491.26895443,0.00014999,2]